Workbook

Sheet Kagsåen
A1: Vandområde | C1: Kagsåen | AW1: Vandområde | AY1: Damhusåen
A3: Udlednings nr. | C3: UKa11 | D3: UKa12 | AW3: Udlednings nr. | AY3: UD10b | AZ3: UD10d | BA3: UD11b | BB3: UD12 | BC3: UD13 | BD3: UD14 | BE3: UD15 | BF3: UD16 | BG3: UD17 | BH3: UD18 | BI3: UD19b | BJ3: UD20b | BK3: UD21 | BL3: UD21b | BM3: UD24 | BN3: Sum
A4: Adresse | C4: Åfløjen N | D4: Åfløjen S | E4: SUM | AW4: Adresse | AY4: Nødoverløb Damhusåens renseanlæg | AZ4: Hovedoverløb Damhus-ledning | BA4: Åhaven | BB4: Sønderkær | BC4: Vigerslev Allé | BD4: Gårdstedet | BE4: Heldbovej | BF4: Lykkebovej | BG4: Landlystvej | BH4: Skyttegårdsvej | BI4: Sandhusvej | BJ4: Hvidovre station | BK4: Vigerslev-parken N for Dæmningen | BL4: Nødoverløb ved Torpedo-bygværket | BM4: Roskildevej | BN4: -
A5: Kloakeringstype | B5: Status | C5: Fælles | D5: Fælles | E5: - | AW5: Kloakeringstype | AX5: Status | AY5: Fælles | AZ5: Fælles | BA5: Fælles | BB5: Fælles | BC5: Fælles | BD5: Fælles | BE5: Fælles | BF5: Fælles | BG5: Fælles | BH5: Fælles | BI5: Fælles | BJ5: Fælles | BK5: Fælles | BL5: Fælles | BM5: Fælles | BN5: -
B6: Plan | C6: Fælles | D6: Fælles | E6: - | AX6: Plan | AY6: Fælles | AZ6: Fælles | BA6: Fælles | BB6: Fælles | BC6: Fælles | BD6: Fælles | BE6: Fælles | BF6: Fælles | BG6: Fælles | BH6: Fælles | BI6: Fælles | BJ6: Fælles | BK6: Fælles | BL6: Fælles | BM6: Fælles | BN6: -
B7: Strategi | C7: Fælles | D7: Fælles | E7: - | AX7: Strategi | AY7: Fælles | AZ7: Fælles | BA7: Fælles | BB7: Fælles | BC7: Fælles | BD7: Fælles | BE7: Fælles | BF7: Fælles | BG7: Fælles | BH7: Fælles | BI7: Fælles | BJ7: Fælles | BK7: Fælles | BL7: Fælles | BM7: Fælles | BN7: -
A8: Reduceret areal ha | B8: Status | C8: 0.671533 | D8: 1.138083 | E8: =SUM(Tabel120[[#This Row],[Åfløjen N]:[Åfløjen S]]) -> 1.809616 | AW8: Reduceret areal ha | AX8: Status | AY8: 62.09627 | AZ8: 0 | BA8: 4.926299 | BB8: 13.292068 | BC8: 9.063189 | BD8: 1.454076 | BE8: 1.523395 | BF8: 3.503314 | BG8: 1.93898 | BH8: 4.850912 | BI8: 2.3 | BJ8: 1.07056 | BK8: 284.5 | BL8: 0 | BM8: 0 | BN8: =SUM(AY8:BM8) -> 390.519063
B9: Plan | C9: 0.671533 | D9: 1.138083 | E9: =SUM(Tabel120[[#This Row],[Åfløjen N]:[Åfløjen S]]) -> 1.809616 | AX9: Plan | AY9: 62.09627 | AZ9: 0 | BA9: 4.926299 | BB9: 13.292068 | BC9: 9.063189 | BD9: 1.454076 | BE9: 1.523395 | BF9: 3.503314 | BG9: 1.93898 | BH9: 4.850912 | BI9: 2.3 | BJ9: 1.07056 | BK9: 284.5 | BL9: 0 | BM9: 0 | BN9: 390.519063
B10: Strategi | C10: 0.671533 | D10: 1.138083 | E10: =SUM(Tabel120[[#This Row],[Åfløjen N]:[Åfløjen S]]) -> 1.809616 | AX10: Strategi | AY10: 62.09627 | AZ10: 0 | BA10: 4.926299 | BB10: 13.292068 | BC10: 9.063189 | BD10: 1.454076 | BE10: 1.523395 | BF10: 3.503314 | BG10: 1.93898 | BH10: 4.850912 | BI10: 2.3 | BJ10: 1.07056 | BK10: 284.5 | BL10: 0 | BM10: 0 | BN10: 390.519063
A11: Maks udledning l/s | B11: Status | C11: 700 | D11: 100 | E11: =SUM(Tabel120[[#This Row],[Åfløjen N]:[Åfløjen S]]) -> 800 | AW11: Maks udledning l/s | AX11: Status | AY11: 5000 | AZ11: 5000 | BA11: 700 | BB11: 3000 | BC11: 1200 | BD11: 500 | BE11: 100 | BF11: 300 | BG11: 300 | BH11: 500 | BI11: 500 | BJ11: 200 | BK11: 1500 | BL11: 0 | BM11: 1000 | BN11: 19800
B12: Plan | C12: 700 | D12: 100 | E12: =SUM(Tabel120[[#This Row],[Åfløjen N]:[Åfløjen S]]) -> 800 | AX12: Plan | AY12: 5000 | AZ12: 5000 | BA12: 700 | BB12: 3000 | BC12: 1200 | BD12: 500 | BE12: 100 | BF12: 300 | BG12: 300 | BH12: 500 | BI12: 500 | BJ12: 200 | BK12: 1500 | BL12: 0 | BM12: 1000 | BN12: 19800
B13: Strategi | C13: 700 | D13: 100 | E13: =SUM(Tabel120[[#This Row],[Åfløjen N]:[Åfløjen S]]) -> 800 | AX13: Strategi | AY13: 5000 | AZ13: 5000 | BA13: 700 | BB13: 3000 | BC13: 1200 | BD13: 500 | BE13: 100 | BF13: 300 | BG13: 300 | BH13: 500 | BI13: 500 | BJ13: 200 | BK13: 1500 | BL13: 0 | BM13: 1000 | BN13: 19800
A14: Overløbshyppighed antal/år | B14: Status | C14: 0.1 | D14: 0.1 | E14: =SUM(Tabel120[[#This Row],[Åfløjen N]:[Åfløjen S]]) -> 0.2 | AW14: Overløbshyppighed antal/år | AX14: Status | AY14: 2 | AZ14: 1 | BA14: 0.5 | BB14: 0.1 | BC14: 0.1 | BD14: 0.1 | BE14: 0.1 | BF14: 0.1 | BG14: 0.25 | BH14: 0.3 | BI14: 0.1 | BJ14: 0.1 | BK14: 0.2 | BL14: 0 | BM14: 13 | BN14: -
B15: Plan | C15: 0.1 | D15: 0.1 | E15: =SUM(Tabel120[[#This Row],[Åfløjen N]:[Åfløjen S]]) -> 0.2 | AX15: Plan | AY15: 2 | AZ15: 1 | BA15: 0.5 | BB15: 0.1 | BC15: 0.1 | BD15: 0.1 | BE15: 0.1 | BF15: 0.1 | BG15: 0.25 | BH15: 0.3 | BI15: 0.1 | BJ15: 0.1 | BK15: 0.2 | BL15: 0 | BM15: 13 | BN15: -
B16: Strategi | C16: 0.05 | D16: 0.05 | E16: =SUM(Tabel120[[#This Row],[Åfløjen N]:[Åfløjen S]]) -> 0.1 | AX16: Strategi | AY16: 1 | AZ16: 0.1 | BA16: 0.05 | BB16: 0.01 | BC16: 0.01 | BD16: 0.01 | BE16: 0.01 | BF16: 0.01 | BG16: 0.025 | BH16: 0.03 | BI16: 0.01 | BJ16: 0.01 | BK16: 0.02 | BL16: 0 | BM16: 10 | BN16: -
A17: Vand m3/år | B17: Status | C17: 50 | D17: 50 | E17: =SUM(Tabel120[[#This Row],[Åfløjen N]:[Åfløjen S]]) -> 100 | AW17: Vand m3/år | AX17: Status | AY17: 3408 | AZ17: 15000 | BA17: 500 | BB17: 1000 | BC17: 100 | BD17: 100 | BE17: 100 | BF17: 100 | BG17: 500 | BH17: 100 | BI17: 100 | BJ17: 100 | BK17: 500 | BL17: 0 | BM17: 8734 | BN17: =SUM(AY17:BM17) -> 30342
B18: Plan | C18: 50 | D18: 50 | E18: =SUM(Tabel120[[#This Row],[Åfløjen N]:[Åfløjen S]]) -> 100 | AX18: Plan | AY18: 3408 | AZ18: 15000 | BA18: 500 | BB18: 1000 | BC18: 100 | BD18: 100 | BE18: 100 | BF18: 100 | BG18: 500 | BH18: 100 | BI18: 100 | BJ18: 100 | BK18: 500 | BL18: 0 | BM18: 8734 | BN18: 30342
B19: Strategi | C19: 25 | D19: 25 | E19: =SUM(Tabel120[[#This Row],[Åfløjen N]:[Åfløjen S]]) -> 50 | AX19: Strategi | AY19: 1704 | AZ19: 1500 | BA19: 50 | BB19: 100 | BC19: 10 | BD19: 10 | BE19: 10 | BF19: 10 | BG19: 50 | BH19: 10 | BI19: 10 | BJ19: 10 | BK19: 50 | BL19: 0 | BM19: 780 | BN19: 4304
A20: COD kg/år | B20: Status | C20: 2.5 | D20: 2.5 | E20: =SUM(Tabel120[[#This Row],[Åfløjen N]:[Åfløjen S]]) -> 5 | AW20: COD kg/år | AX20: Status | AY20: 170 | AZ20: 750 | BA20: 25 | BB20: 50 | BC20: 5 | BD20: 5 | BE20: 5 | BF20: 5 | BG20: 25 | BH20: 5 | BI20: 5 | BJ20: 5 | BK20: 25 | BL20: 0 | BM20: 437 | BN20: 1517
B21: Plan | C21: 2.5 | D21: 2.5 | E21: =SUM(Tabel120[[#This Row],[Åfløjen N]:[Åfløjen S]]) -> 5 | AX21: Plan | AY21: 170 | AZ21: 750 | BA21: 25 | BB21: 50 | BC21: 5 | BD21: 5 | BE21: 5 | BF21: 5 | BG21: 25 | BH21: 5 | BI21: 5 | BJ21: 5 | BK21: 25 | BL21: 0 | BM21: 437 | BN21: 1517
B22: Strategi | C22: 1.25 | D22: 1.25 | E22: =SUM(Tabel120[[#This Row],[Åfløjen N]:[Åfløjen S]]) -> 2.5 | AX22: Strategi | AY22: 85 | AZ22: 75 | BA22: 2 | BB22: 5.9 | BC22: 0.5 | BD22: 0.5 | BE22: 0.5 | BF22: 0.5 | BG22: 2.5 | BH22: 0.5 | BI22: 0.5 | BJ22: 0.5 | BK22: 2.5 | BL22: 0 | BM22: 39 | BN22: 215.4
A23: Total N kg/år | B23: Status | C23: 0.1 | D23: 0.1 | E23: =SUM(Tabel120[[#This Row],[Åfløjen N]:[Åfløjen S]]) -> 0.2 | AW23: Total N kg/år | AX23: Status | AY23: 6.8 | AZ23: 30 | BA23: 1 | BB23: 2 | BC23: 0.2 | BD23: 0.2 | BE23: 0.2 | BF23: 0.2 | BG23: 1 | BH23: 0.2 | BI23: 0.2 | BJ23: 0.2 | BK23: 1 | BL23: 0 | BM23: 17.5 | BN23: 60.7
B24: Plan | C24: 0.1 | D24: 0.1 | E24: =SUM(Tabel120[[#This Row],[Åfløjen N]:[Åfløjen S]]) -> 0.2 | AX24: Plan | AY24: 6.8 | AZ24: 30 | BA24: 1 | BB24: 2 | BC24: 0.2 | BD24: 0.2 | BE24: 0.2 | BF24: 0.2 | BG24: 1 | BH24: 0.2 | BI24: 0.2 | BJ24: 0.2 | BK24: 1 | BL24: 0 | BM24: 17.5 | BN24: 60.7
B25: Strategi | C25: 0.05 | D25: 0.05 | E25: =SUM(Tabel120[[#This Row],[Åfløjen N]:[Åfløjen S]]) -> 0.1 | AX25: Strategi | AY25: 3.4 | AZ25: 3 | BA25: 0.08 | BB25: 0.2 | BC25: 0.02 | BD25: 0.02 | BE25: 0.02 | BF25: 0.02 | BG25: 0.1 | BH25: 0.02 | BI25: 0.02 | BJ25: 0.02 | BK25: 0.1 | BL25: 0 | BM25: 1.6 | BN25: 8.62
A26: Total P kg/år | B26: Status | C26: 0.025 | D26: 0.025 | E26: =SUM(Tabel120[[#This Row],[Åfløjen N]:[Åfløjen S]]) -> 0.05 | AW26: Total P kg/år | AX26: Status | AY26: 1.7 | AZ26: 7.5 | BA26: 0.25 | BB26: 0.5 | BC26: 0.05 | BD26: 0.05 | BE26: 0.05 | BF26: 0.05 | BG26: 0.25 | BH26: 0.05 | BI26: 0.05 | BJ26: 0.05 | BK26: 0.25 | BL26: 0 | BM26: 4.4 | BN26: 15.2
B27: Plan | C27: 0.025 | D27: 0.025 | E27: =SUM(Tabel120[[#This Row],[Åfløjen N]:[Åfløjen S]]) -> 0.05 | AX27: Plan | AY27: 1.7 | AZ27: 7.5 | BA27: 0.25 | BB27: 0.5 | BC27: 0.05 | BD27: 0.05 | BE27: 0.05 | BF27: 0.05 | BG27: 0.25 | BH27: 0.05 | BI27: 0.05 | BJ27: 0.05 | BK27: 0.25 | BL27: 0 | BM27: 4.4 | BN27: 15.2
B28: Strategi | C28: 0.0125 | D28: 0.0125 | E28: =SUM(Tabel120[[#This Row],[Åfløjen N]:[Åfløjen S]]) -> 0.025 | AX28: Strategi | AY28: 0.8 | AZ28: 0.75 | BA28: 0.02 | BB28: 0.06 | BC28: 0.005 | BD28: 0.005 | BE28: 0.005 | BF28: 0.005 | BG28: 0.025 | BH28: 0.005 | BI28: 0.005 | BJ28: 0.005 | BK28: 0.025 | BL28: 0 | BM28: 0.4 | BN28: =SUM(AY28:BM28) -> 2.115
